fUST/lending_fUST_20250403
["ID","MTS","AMOUNT","RATE_DAILY","PERIOD"]
[357051876,1743645038096,-673.54903011,0.000228,3]
[357051878,1743645038106,-419.02799708,0.0002298,2]
[357051880,1743645038117,-250.43177224,0.00023,2]
[357051963,1743645040345,-331.0,0.00023,2]
[357052196,1743645043080,-5288.33213225,0.00023,2]
[357052197,1743645043096,-430.47609914,0.00023,2]
[357052198,1743645043132,-522.43297738,0.00023,2]
[357052199,1743645043188,-150.12,0.00021648,2]
[357052200,1743645043200,-4250.88,0.00023,2]
[357052218,1743645046244,-404.272,0.00021648,2]
[357052219,1743645046254,-21126.62400729,0.00023,2]
[357052220,1743645046267,-3870.05015306,0.00023,2]
[357052221,1743645046295,-14120.75400783,0.00023,2]
[357052423,1743645066790,2000.0,0.00025,30]
[357052424,1743645076921,3263.45880948,0.00025,30]
[357052426,1743645575335,741.847596,0.00025,30]
[357052427,1743645714799,1044.71566409,0.00023,30]
[357052428,1743645777444,3040.0,0.00025,40]
[357052451,1743646175491,1186.956153,0.00025,30]
[357052466,1743646232546,-501.81517943,0.00020999,2]
[357052467,1743646232558,-500.0,0.00020999,2]
[357052468,1743646232570,-500.0,0.00020999,2]
[357052469,1743646232582,-502.52761044,0.00020999,2]
[357052470,1743646232594,-502.60040227,0.00020999,2]
[357052471,1743646232606,-506.70049901,0.00020999,2]
[357052472,1743646232617,-613.19900661,0.00020999,2]
[357052473,1743646232628,-501.37898122,0.00020999,2]
[357052474,1743646232640,-514.21709945,0.00020999,2]
[357052475,1743646232651,-503.70504504,0.00020999,2]
[357052476,1743646232662,-501.3479593,0.00020999,2]
[357052477,1743646232673,-504.19200888,0.00020999,2]
[357052478,1743646232684,-503.73874455,0.00020999,2]
[357052479,1743646232694,-501.04397603,0.00020999,2]
[357052480,1743646232704,-505.5464403,0.00020999,2]
[357052481,1743646232722,-608.77720663,0.00020999,2]
[357052482,1743646232731,-6928.24,0.00020999,2]
[357052483,1743646232741,-506.95826286,0.00020999,2]
[357052484,1743646232751,-503.14688818,0.00020999,2]
[357052485,1743646232761,-500.0,0.00020999,2]
[357052486,1743646232771,-500.0,0.00020999,2]
[357052487,1743646232784,-247.61961953,0.00020999,2]
[357052488,1743646232795,-71111.43370428,0.00021,2]
[357052489,1743646232806,-2372.0,0.00021,2]
[357052490,1743646232816,-500.0,0.00021273,2]
[357052491,1743646232826,-346.24127578,0.00021273,2]
[357052492,1743646232836,-10.66513436,0.00021273,2]
[357052493,1743646232849,-6917.57486564,0.00021273,2]
[357052494,1743646232859,-296.95799786,0.00021341,2]
[357052495,1743646232870,-240.46,0.00021342,3]
[357052496,1743646232880,-721.38,0.00021342,3]
[357052497,1743646232891,-1186.956153,0.0002145,2]
[357052498,1743646232902,-500.0,0.00021547,2]
[357052499,1743646232912,-6928.24,0.00021547,2]
[357052500,1743646232923,-500.0,0.00021821,2]
[357052501,1743646232933,-6928.24,0.00021821,2]
[357052502,1743646232943,-12458.93820146,0.00021829,2]
[357052503,1743646232953,-419.02799708,0.0002183,2]
[357052504,1743646232968,-1418.93552975,0.000219,3]
[357052505,1743646232978,-153.0,0.00021918,2]
[357052506,1743646232987,-153.0,0.00021918,2]
[357052507,1743646232998,-153.0,0.00021918,2]
[357052508,1743646233008,-172.0,0.00022,2]
[357052509,1743646233019,-500.0,0.00022095,2]
[357052510,1743646233029,-6928.24,0.00022095,2]
[357052511,1743646233044,-1186.956153,0.00022162,2]
[357052512,1743646233055,-500.0,0.00022369,2]
[357052513,1743646233065,-6928.24,0.00022369,2]
[357052514,1743646233075,-1418.93552954,0.00022383,4]
[357052515,1743646233087,-500.0,0.0002245,2]
[357052516,1743646233098,-500.0,0.00022643,2]
[357052517,1743646233108,-6928.24,0.00022643,2]
[357052518,1743646233119,-161.0309927,0.00022685,2]
[357052519,1743646233129,-480.92,0.00022712,3]
[357052520,1743646233142,-825.81,0.000228,6]
[357052521,1743646233153,-1418.93552954,0.00022866,4]
[357052522,1743646233163,-1186.956153,0.00022875,2]
[357052523,1743646233174,-160.0,0.00022877,2]
[357052524,1743646233183,-833.77711022,0.00022877,2]
[357052525,1743646233193,-504.38094458,0.00022898,2]
[357052526,1743646233204,-500.0,0.00022898,2]
[357052527,1743646233218,-196.9868429,0.00022899,2]
[357052528,1743646233227,-500.0,0.00022899,2]
[357052529,1743646233238,-501.02998454,0.00022899,2]
[357052530,1743646233248,-501.01688201,0.00022899,2]
[357052531,1743646233259,-575.92905857,0.00022899,2]
[357052532,1743646233270,-502.09709444,0.00022899,2]
[357052533,1743646233281,-412.29254229,0.00022899,2]
[357052534,1743646233291,-500.0,0.00022899,2]
[357052535,1743646233302,-500.92354494,0.00022899,2]
[357052536,1743646233311,-500.0,0.00022899,2]
[357052537,1743646233322,-501.43054805,0.00022899,2]
[357052538,1743646233332,-3000.0,0.000229,2]
[357052539,1743646233342,-3000.0,0.0002291,2]
[357052540,1743646233352,-500.0,0.00022917,2]
[357052541,1743646233362,-6928.24,0.00022917,2]
[357052542,1743646233372,-3000.0,0.0002292,2]
[357052543,1743646233382,-3000.0,0.0002293,2]
[357052544,1743646233392,-3000.0,0.0002294,2]
[357052545,1743646233401,-3000.0,0.0002295,2]
[357052546,1743646233411,-3000.0,0.0002296,2]
[357052547,1743646233421,-3000.0,0.0002297,2]
[357052548,1743646233431,-3000.0,0.0002298,2]
[357052549,1743646233440,-3000.0,0.0002299,2]
[357052550,1743646233450,-93530.54527068,0.00023,2]
[357052551,1743646233460,-246.01649163,0.00023,2]
[357052552,1743646233469,-943.0,0.00023,2]
[357052553,1743646233478,-1333.0,0.00023,2]
[357052554,1743646233488,-2251.0,0.00023,2]
[357052555,1743646233497,-3000.0,0.00023,2]
[357052556,1743646233506,-500.0,0.00023001,2]
[357052557,1743646233516,-10004.2209803,0.00023004,2]
[357052558,1743646233525,-3000.0,0.0002301,2]
[357052559,1743646233534,-173.0,0.00023014,2]
[357052560,1743646233543,-3000.0,0.0002302,2]
[357052561,1743646233552,-5092.350974,0.0002303,2]
[357052562,1743646233561,-500.0,0.00023036,2]
[357052563,1743646233570,-500.0,0.00023045,2]
[357052564,1743646233580,-500.0,0.0002308,2]
[357052565,1743646233590,-500.0,0.00023123,2]
[357052566,1743646233600,-26331.88817864,0.00023166,2]
[357052567,1743646233609,-500.0,0.00023167,2]
[357052568,1743646233619,-1400.0,0.00023168,2]
[357052569,1743646233628,-500.0,0.00023172,2]
[357052570,1743646233638,-2839.3830641,0.00023173,2]
[357052571,1743646233647,-500.0,0.00023191,2]
[357052572,1743646233657,-6928.24,0.00023191,2]
[357052573,1743646233666,-500.0,0.00023194,2]
[357052574,1743646233676,-500.0,0.000232,2]
[357052575,1743646233685,-500.0,0.00023273,2]
[357052576,1743646233694,-500.0,0.00023273,2]
[357052577,1743646233703,-500.0,0.00023273,2]
[357052578,1743646233712,-500.97963188,0.00023273,2]
[357052579,1743646233721,-500.0,0.00023273,2]
[357052580,1743646233732,-500.0,0.00023273,2]
[357052581,1743646233742,-500.0,0.00023273,2]
[357052582,1743646233752,-261.94983397,0.00023273,2]
[357052583,1743646233761,-500.0,0.00023273,2]
[357052584,1743646233771,-503.79440779,0.00023273,2]
[357052585,1743646233781,-500.0,0.00023273,2]
[357052586,1743646233790,-500.0,0.00023273,2]
[357052587,1743646233799,-220233.13255221,0.00023273,2]
[357052588,1743646233810,-151.0,0.00023273,7]
[357052589,1743646233820,-151.0,0.00023273,7]
[357052590,1743646233830,-151.0,0.00023273,7]
[357052591,1743646233840,-173.713906,0.00023273,7]
[357052592,1743646233849,-151.0,0.00023273,7]
[357052593,1743646233859,-151.0,0.00023273,7]
[357052594,1743646233869,-151.0,0.00023273,7]
[357052595,1743646233879,-151.0,0.00023273,7]
[357052596,1743646233889,-151.0,0.00023273,7]
[357052597,1743646233899,-151.0,0.00023273,7]
[357052598,1743646233908,-153.173546,0.00023273,7]
[357052599,1743646233918,-220.732884,0.00023273,2]
[357052600,1743646233927,-220.732884,0.00023273,2]
[357052601,1743646233937,-220.732884,0.00023273,2]
[357052602,1743646233947,-220.732884,0.00023273,2]
[357052603,1743646233958,-151.0,0.00023273,7]
[357052604,1743646233969,-159.242875,0.00023273,7]
[357052605,1743646233979,-500.0,0.00023281,2]
[357052606,1743646233989,-500.0,0.00023332,2]
[357052607,1743646233999,-218.32501067,0.00023348,3]
[357052608,1743646234009,-500.0,0.00023348,2]
[357052609,1743646234019,-1418.93552954,0.00023348,4]
[357052610,1743646234029,-500.0,0.00023373,2]
[357052611,1743646234041,-503.95001126,0.00023373,2]
[357052612,1743646234050,-502.04521241,0.00023373,2]
[357052613,1743646234064,-503.72565078,0.00023373,2]
[357052614,1743646234074,-500.0,0.00023373,2]
[357052615,1743646234084,-500.0,0.00023373,2]
[357052616,1743646234094,-503.76464804,0.00023373,2]
[357052617,1743646234105,-500.0,0.00023373,2]
[357052618,1743646234115,-500.85512914,0.00023373,2]
[357052619,1743646234124,-500.0,0.00023373,2]
[357052620,1743646234134,-15.36757866,0.00023373,2]
[357052654,1743646238457,-4313.8612639,0.00023272,3]
[357052656,1743646238468,-484.63242134,0.00023373,2]
[357052659,1743646238478,-500.0,0.00023373,2]
[357052661,1743646238488,-198.96775363,0.00023386,2]
[357052663,1743646238499,-11280.12681356,0.000234,14]
[357052798,1743646243327,-1042.8263573,0.000209,2]
[357052799,1743646243337,-8301.95968246,0.000234,14]
[357052824,1743646777436,652.825884,0.00025,30]
[357052856,1743647377335,496.147672,0.00025,30]
[357052881,1743647432555,-160.0,0.00020966,2]
[357052882,1743647432566,-4173.21257303,0.0002099,2]
[357052930,1743647976066,476.301765,0.00025,30]
[357052957,1743648453504,3851.0,0.00025,30]
[357052966,1743648576392,381.041412,0.00025,30]
[357052970,1743648590899,378.0,0.00025,120]
[357052980,1743648632694,-309.2596324,0.00019996,2]
[357052981,1743648632703,-1121.99378222,0.00020897,2]
[357052982,1743648632713,-1229.74412564,0.000209,3]
[357052983,1743648632722,-500.0,0.00020973,2]
[357052984,1743648632732,-152.18854466,0.00020987,2]
[357052985,1743648632742,-200.0,0.00020987,2]
[357052986,1743648632751,-2387.21975035,0.0002099,2]
[357052987,1743648632762,-300.0,0.00020996,2]
[357052988,1743648632771,-515.78126663,0.00020996,2]
[357052989,1743648632780,-513.2884831,0.00020996,2]
[357052990,1743648632793,-504.92930346,0.00020996,2]
[357052991,1743648632803,-245.68246854,0.00020997,3]
[357052992,1743648632812,-2156.93063195,0.00020997,3]
[357052993,1743648632821,-520.18000098,0.00020997,2]
[357052994,1743648632832,-519.78623749,0.00020997,2]
[357052995,1743648632843,-546.53625523,0.00020997,2]
[357052996,1743648632853,-518.26597282,0.00020997,2]
[357052997,1743648632863,-500.0,0.00020997,2]
[357052998,1743648632873,-500.0,0.00020997,2]
[357052999,1743648632882,-549.93265248,0.00020997,2]
[357053000,1743648632891,-513.66281487,0.00020997,2]
[357053001,1743648632901,-504.57480094,0.00020997,2]
[357053002,1743648632911,-543.61610398,0.00020997,2]
[357053003,1743648632920,-514.80138749,0.00020997,2]
[357053004,1743648632930,-602.0005586,0.00020997,2]
[357053005,1743648632941,-500.0,0.00020997,2]
[357053006,1743648632952,-537.42,0.00020997,2]
[357053007,1743648632962,-512.55755959,0.00020997,2]
[357053008,1743648632973,-513.62698668,0.00020997,2]
[357053009,1743648632982,-627.30586757,0.00020997,2]
[357053010,1743648632993,-511.21810926,0.00020997,2]
[357053011,1743648633002,-521.25811187,0.00020997,2]
[357053012,1743648633012,-561.4473281,0.00020997,2]
[357053013,1743648633021,-566.28934596,0.00020997,2]
[357053014,1743648633032,-511.6127291,0.00020997,2]
[357053015,1743648633042,-512.27604426,0.00020997,2]
[357053016,1743648633052,-536.64387534,0.00020997,2]
[357053017,1743648633061,-545.06958432,0.00020997,2]
[357053018,1743648633073,-559.54721036,0.00020997,2]
[357053019,1743648633083,-508.33147067,0.00020997,2]
[357053020,1743648633092,-516.72644334,0.00020997,2]
[357053021,1743648633102,-498.00563858,0.00020997,2]
[357053022,1743648633112,-511.23435387,0.00020997,2]
[357053023,1743648633123,-500.0,0.00020997,2]
[357053024,1743648633133,-517.38815679,0.00020997,2]
[357053025,1743648633145,-500.0,0.00020997,2]
[357053026,1743648633155,-543.95918448,0.00020997,2]
[357053027,1743648633165,-520.49504322,0.00020997,2]
[357053028,1743648633176,-546.97412947,0.00020997,2]
[357053029,1743648633186,-428.80311216,0.00020997,2]
[357053030,1743648633196,-563.21372267,0.00020997,2]
[357053031,1743648633207,-516.55926636,0.00020997,2]
[357053032,1743648633217,-508.18831561,0.00020997,2]
[357053033,1743648633227,-517.48236732,0.00020997,2]
[357053034,1743648633238,-500.0,0.00020997,2]
[357053035,1743648633249,-507.21744186,0.00020997,2]
[357053036,1743648633259,-500.0,0.00020997,2]
[357053037,1743648633269,-513.65784587,0.00020997,2]
[357053038,1743648633279,-500.0,0.00020997,2]
[357053039,1743648633289,-526.00256299,0.00020997,2]
[357053040,1743648633299,-515.82058966,0.00020997,2]
[357053041,1743648633310,-500.0,0.00020997,2]
[357053042,1743648633320,-511.05000204,0.00020997,2]
[357053043,1743648633329,-525.05930544,0.00020998,2]
[357053044,1743648633339,-514.06217104,0.00020998,2]
[357053045,1743648633350,-537.8863904,0.00020998,2]
[357053046,1743648633360,-527.60220092,0.00020998,2]
[357053047,1743648633370,-524.07923814,0.00020998,2]
[357053048,1743648633379,-518.33416149,0.00020998,2]
[357053049,1743648633389,-515.20619001,0.00020998,2]
[357053050,1743648633399,-500.22752621,0.00020998,2]
[357053051,1743648633409,-603.18260543,0.00020998,2]
[357053052,1743648633419,-532.60904626,0.00020998,2]
[357053053,1743648633428,-589.15833303,0.00020998,2]
[357053054,1743648633438,-539.6694501,0.00020998,2]
[357053055,1743648633448,-612.1984453,0.00020998,2]
[357053056,1743648633458,-515.19150741,0.00020998,2]
[357053057,1743648633469,-523.54981701,0.00020998,2]
[357053058,1743648633478,-500.0,0.00020998,2]
[357053059,1743648633488,-519.83558099,0.00020998,2]
[357053060,1743648633498,-510.73245539,0.00020998,2]
[357053061,1743648633508,-505.36601791,0.00020998,2]
[357053062,1743648633518,-503.076994,0.00020998,2]
[357053063,1743648633527,-517.41734621,0.00020998,2]
[357053064,1743648633538,-511.68572698,0.00020998,2]
[357053065,1743648633548,-511.21510597,0.00020998,2]
[357053066,1743648633558,-190.15970019,0.00020998,2]
[357053067,1743648633568,-4330.15,0.00020999,2]
[357053068,1743648633578,-500.0,0.00020999,2]
[357053069,1743648633588,-500.0,0.00020999,2]
[357053070,1743648633599,-207.8705985,0.00020999,2]
[357053071,1743648633609,-24203.94472324,0.00021,2]
[357053072,1743648633622,-714.94839697,0.00021,2]
[357053073,1743648633634,-1167.09604684,0.00021,2]
[357053096,1743648638495,-94477.73055913,0.00021,2]
[357053123,1743648643775,-1322.87761158,0.00021,2]
[357053141,1743648646703,-101167.23738315,0.00021,2]
[357053149,1743649174878,442.008038,0.00025,30]
[357053217,1743649831919,-500.0,0.00020997,2]
[357053218,1743649831929,-500.0,0.00020997,2]
[357053219,1743649831939,-1165.81728668,0.00021,2]
[357053220,1743649831950,-2999.999995,0.00021,2]
[357053221,1743649831963,-1073.36140284,0.00021,2]
[357053222,1743649831974,-374.05366051,0.00021,2]
[357053235,1743649840114,-1400.71100295,0.00021,2]
[357053248,1743649843982,-256.18487395,0.00021,2]
[357053260,1743649846083,-362.24999997,0.00021,2]
[357053268,1743650556447,424.327716,0.00024895,30]
[357053269,1743650556879,424.327716,0.00024697,30]
[357053270,1743650557194,424.327716,0.000245,30]
[357053281,1743650839195,502.6242629,0.000245,30]
[357053309,1743650975202,311.173659,0.00024895,30]
[357053310,1743650975498,311.173659,0.00024697,30]
[357053311,1743650975846,311.173659,0.000245,30]
[357053343,1743651032212,-207.45381494,0.00016,2]
[357053344,1743651032222,-151.0,0.00020689,2]
[357053345,1743651032232,-154.76224119,0.00020689,2]
[357053346,1743651032242,-64.13425793,0.00020702,2]
[357053347,1743651032327,-2748.09534158,0.00020702,2]
[357053348,1743651035978,280.056293,0.00025,30]
[357053355,1743651037878,-2751.45602189,0.00020702,2]
[357053356,1743651037888,-1188.75265494,0.000209,3]
[357053357,1743651037901,-788.769144,0.00020999,2]
[357053358,1743651037911,-1078.46531597,0.00021,3]
[357053359,1743651037922,-1373.8787817,0.00021,2]
[357053360,1743651037932,-202.0,0.00021,2]
[357053361,1743651037942,-687.94386136,0.00021,2]
[357053492,1743652196881,151.0,0.00025,30]
[357053533,1743652243323,-999.38107724,0.00020258,2]
[357053534,1743652243377,-14.72344306,0.00020258,2]
[357053535,1743652243387,-160.0,0.00020937,2]
[357053536,1743652243397,-764.78562533,0.00021,2]
[357053567,1743652246319,-364.23318365,0.00021,2]
[357053605,1743652297215,152.524,0.00025,30]
[357053888,1743653436180,-300.0,0.00020262,2]
[357053889,1743653436190,-539.23265799,0.00020263,3]
[357053890,1743653436200,-10500.7383804,0.00020263,2]
[357053891,1743653436210,-1155.88998101,0.000209,3]
[357053892,1743653436219,-685.99427351,0.00021,2]
[357053893,1743653436229,-783.16410118,0.00021171,2]
[357053894,1743653436241,-301.47245152,0.000212,2]
[357053895,1743653436251,-151.0,0.00021255,2]
[357053896,1743653436260,-154.76224119,0.00021255,2]
[357053898,1743653436270,-246.31464335,0.00021257,2]
[357053899,1743653436279,-500.0,0.00021259,2]
[357053901,1743653436289,-631.50211486,0.00021259,2]
[357053903,1743653436298,-151.0,0.00021259,2]
[357053904,1743653436307,-151.0,0.0002126,2]
[357053905,1743653436318,-151.0,0.0002126,2]
[357053908,1743653436330,-152.475967,0.0002126,2]
[357053910,1743653436342,-151.0,0.0002126,2]
[357053912,1743653436354,-151.0,0.0002126,2]
[357053914,1743653436367,-151.0,0.0002126,2]
[357053916,1743653436379,-284.837109,0.0002126,2]
[357053918,1743653436392,-151.0,0.0002126,2]
[357053920,1743653436404,-151.0,0.0002126,2]
[357053921,1743653436414,-248.645101,0.0002126,2]
[357053922,1743653436425,-431.725914,0.0002126,2]
[357053923,1743653436436,-431.725914,0.0002126,2]
[357053924,1743653436448,-738.99,0.0002126,3]
[357053925,1743653436460,-292.963989,0.0002126,2]
[357053926,1743653436471,-151.0,0.0002126,2]
[357053927,1743653436483,-151.0,0.0002126,2]
[357053928,1743653436495,-292.963989,0.0002126,2]
[357053929,1743653436506,-151.0,0.0002126,2]
[357053930,1743653436518,-755.544854,0.0002126,2]
[357053931,1743653436528,-755.544854,0.0002126,2]
[357053932,1743653436540,-755.544854,0.0002126,2]
[357053933,1743653436552,-755.544854,0.0002126,2]
[357053934,1743653436563,-151.0,0.0002126,2]
[357053935,1743653436575,-151.0,0.0002126,2]
[357053936,1743653436586,-151.0,0.0002126,2]
[357053937,1743653436597,-170.318016,0.00021266,2]
[357053938,1743653436608,-151.0,0.00021266,2]
[357053939,1743653436619,-431.725914,0.00021266,2]
[357053940,1743653436630,-431.725914,0.00021266,2]
[357053941,1743653436640,-292.963989,0.00021266,2]
[357053942,1743653436650,-151.0,0.00021266,2]
[357053943,1743653436662,-292.963989,0.00021266,2]
[357053944,1743653436673,-151.0,0.00021266,2]
[357053945,1743653436686,-755.544854,0.00021266,2]
[357053946,1743653436698,-755.544854,0.00021266,2]
[357053947,1743653436708,-151.0,0.00021266,2]
[357053948,1743653436720,-151.0,0.00021266,2]
[357053949,1743653436731,-513.68130359,0.00021266,2]
[357053950,1743653436741,-500.0,0.00021266,2]
[357053951,1743653436751,-500.0,0.00021266,2]
[357053952,1743653436761,-525.93244709,0.00021266,2]
[357053953,1743653436772,-513.24194911,0.00021266,2]
[357053954,1743653436784,-220.351366,0.00021267,2]
[357053955,1743653436795,-180.144149,0.00021267,2]
[357053956,1743653436806,-151.0,0.00021267,2]
[357053957,1743653436818,-151.0,0.00021267,2]
[357053958,1743653436829,-151.0,0.00021267,2]
[357053959,1743653436840,-151.0,0.00021267,2]
[357053960,1743653436852,-516.56138683,0.00021267,2]
[357053961,1743653436863,-569.71,0.00021267,2]
[357053962,1743653436874,-617.46756107,0.00021267,2]
[357053963,1743653436886,-431.725914,0.00021267,2]
[357053964,1743653436898,-431.725914,0.00021267,2]
[357053965,1743653436909,-292.963989,0.00021267,2]
[357053966,1743653436920,-151.0,0.00021267,2]
[357053967,1743653436933,-292.963989,0.00021267,2]
[357053968,1743653436945,-500.0,0.00021267,2]
[357053969,1743653436955,-151.0,0.00021267,2]
[357053970,1743653436964,-500.0,0.00021267,2]
[357053971,1743653436974,-528.31125106,0.00021267,2]
[357053972,1743653436984,-755.544854,0.00021267,2]
[357053973,1743653436995,-755.544854,0.00021267,2]
[357053974,1743653437005,-500.0,0.00021267,2]
[357053975,1743653437016,-151.0,0.00021267,2]
[357053976,1743653437028,-264.52885,0.00021267,2]
[357053977,1743653437040,-500.0,0.00021267,2]
[357053978,1743653437052,-500.0,0.00021267,2]
[357053979,1743653437064,-507.181493,0.00021267,2]
[357053980,1743653437075,-500.0,0.00021267,2]
[357053981,1743653437085,-500.0,0.00021267,2]
[357053982,1743653437095,-515.55770608,0.00021267,2]
[357053983,1743653437106,-500.0,0.00021267,2]
[357053984,1743653437117,-500.0,0.00021267,2]
[357053985,1743653437129,-257.77012381,0.00021267,2]
[357053986,1743653437142,-504.48800468,0.00021267,2]
[357053987,1743653437155,-500.0,0.00021267,2]
[357053988,1743653437168,-152.485818,0.00021268,2]
[357053989,1743653437178,-151.0,0.00021268,2]
[357053990,1743653437189,-151.0,0.00021268,2]
[357053991,1743653437199,-231.219482,0.00021268,2]
[357053992,1743653437209,-151.0,0.00021268,2]
[357053993,1743653437220,-151.0,0.00021268,2]
[357053994,1743653437230,-342.631797,0.00021268,2]
[357053995,1743653437244,-342.631797,0.00021268,2]
[357053996,1743653437254,-342.631797,0.00021268,2]
[357053997,1743653437265,-342.631797,0.00021268,2]
[357053998,1743653437275,-151.0,0.00021268,2]
[357053999,1743653437287,-151.0,0.00021268,2]
[357054000,1743653437298,-151.0,0.00021268,2]
[357054001,1743653437308,-151.0,0.00021268,2]
[357054002,1743653437322,-292.187316,0.00021268,2]
[357054003,1743653437336,-242.522928,0.00021268,2]
[357054004,1743653437346,-151.0,0.00021268,2]
[357054005,1743653437358,-500.0,0.00021268,2]
[357054006,1743653437369,-512.17622181,0.00021268,2]
[357054007,1743653437380,-500.0,0.00021268,2]
[357054008,1743653437390,-522.44774992,0.00021268,2]
[357054009,1743653437400,-513.90249801,0.00021268,2]
[357054010,1743653437411,-500.0,0.00021268,2]
[357054011,1743653437422,-514.65307837,0.00021268,2]
[357054012,1743653437433,-500.0,0.00021268,2]
[357054013,1743653437443,-500.0,0.00021268,2]
[357054014,1743653437454,-151.0,0.00021268,2]
[357054015,1743653437465,-151.0,0.00021268,2]
[357054016,1743653437475,-135.28655534,0.00021268,2]
[357054017,1743653437497,-15.71344466,0.00021268,2]
[357054018,1743653437507,-151.0,0.00021268,2]
[357054019,1743653437517,-151.0,0.00021268,2]
[357054020,1743653437529,-151.0,0.00021268,2]
[357054021,1743653437540,-189.095792,0.00021268,2]
[357054022,1743653437550,-511.23686692,0.00021268,2]
[357054023,1743653437561,-308.30887372,0.00021268,2]
[357054063,1743653446349,-527.53183418,0.00021266,2]
[357054064,1743653446360,-206.72112628,0.00021268,2]
[357054065,1743653446370,-494.84614159,0.00021268,2]
[357054066,1743653446456,-5.15385841,0.00021268,2]
[357054067,1743653446467,-513.25407926,0.00021268,2]
[357054068,1743653446476,-517.62377634,0.00021268,2]
[357054069,1743653446487,-165.66579593,0.00021268,2]
[357054070,1743653446499,-348.17301797,0.00021268,2]
[357054071,1743653446509,-517.54468736,0.00021268,2]
[357054072,1743653446519,-500.0,0.00021268,2]
[357054073,1743653446530,-500.0,0.00021268,2]
[357054074,1743653446540,-500.0,0.00021268,2]
[357054075,1743653446550,-431.725914,0.00021268,2]
[357054076,1743653446560,-431.725914,0.00021268,2]
[357054077,1743653446570,-500.0,0.00021268,2]
[357054078,1743653446581,-431.725914,0.00021268,2]
[357054079,1743653446590,-431.725914,0.00021268,2]
[357054080,1743653446599,-431.725914,0.00021268,2]
[357054081,1743653446609,-431.725914,0.00021268,2]
[357054082,1743653446618,-431.725914,0.00021268,2]
[357054083,1743653446628,-508.28681601,0.00021268,2]
[357054084,1743653446637,-431.725914,0.00021268,2]
[357054085,1743653446647,-431.725914,0.00021268,2]
[357054086,1743653446656,-431.725914,0.00021268,2]
[357054087,1743653446666,-516.14486297,0.00021268,2]
[357054088,1743653446675,-431.725914,0.00021268,2]
[357054089,1743653446685,-431.725914,0.00021268,2]
[357054090,1743653446694,-431.725914,0.00021268,2]
[357054091,1743653446705,-507.94268925,0.00021268,2]
[357054092,1743653446716,-431.72590664,0.00021268,2]
[357054093,1743653446729,-292.963989,0.00021268,2]
[357054094,1743653446741,-63.12026188,0.00021268,2]
[357054095,1743653446763,-229.84372712,0.00021268,2]
[357054096,1743653446780,-292.963989,0.00021268,2]
[357054097,1743653446791,-292.963989,0.00021268,2]
[357054098,1743653446802,-292.963989,0.00021268,2]
[357054099,1743653446812,-292.963989,0.00021268,2]
[357054100,1743653446823,-292.963989,0.00021268,2]
[357054101,1743653446833,-151.0,0.00021268,2]
[357054102,1743653446843,-151.0,0.00021268,2]
[357054103,1743653446852,-292.963989,0.00021268,2]
[357054104,1743653446862,-151.0,0.00021268,2]
[357054105,1743653446872,-292.963989,0.00021268,2]
[357054106,1743653446882,-294.830375,0.00021268,2]
[357054107,1743653446891,-292.963989,0.00021268,2]
[357054108,1743653446902,-292.963989,0.00021268,2]
[357054109,1743653446911,-292.963989,0.00021268,2]
[357054110,1743653446921,-292.963989,0.00021268,2]
[357054111,1743653446931,-292.963998,0.00021268,2]
[357054112,1743653446940,-151.0,0.00021268,2]
[357054113,1743653446950,-151.0,0.00021268,2]
[357054114,1743653446959,-172.79762,0.00021268,2]